fUST/lending_fUST_20251008
["ID","MTS","AMOUNT","RATE_DAILY","PERIOD"]
[389869548,1759879840729,-4601.5526538,0.00021953,2]
[389869805,1759879843711,-494.3173247,0.00021953,2]
[389869808,1759879843732,-3164.79158943,0.00021953,2]
[389869810,1759879843741,-360.0,0.00022196,2]
[389869812,1759879843751,-500.0,0.00022344,2]
[389869814,1759879843762,-500.0,0.00022436,2]
[389869816,1759879843771,-500.0,0.00022672,2]
[389869818,1759879843780,-460.0,0.00022744,2]
[389869820,1759879843789,-212.91901006,0.00022774,2]
[389869822,1759879843798,-212.91901006,0.00022774,2]
[389869824,1759879843807,-212.91901006,0.00022774,2]
[389869826,1759879843815,-624.08286466,0.00022938,2]
[389869828,1759879843824,-464.0892876,0.00023,2]
[389869831,1759879843834,-160.0,0.00023,2]
[389869834,1759879843843,-5318.00114445,0.00023,2]
[389869837,1759879843851,-6992.56,0.00023013,2]
[389869840,1759879843860,-212.91901006,0.00023048,6]
[389869843,1759879843869,-212.91901006,0.00023048,6]
[389869845,1759879843878,-624.08286466,0.00023076,4]
[389869847,1759879843887,-624.08286466,0.00023076,4]
[389869849,1759879843896,-624.08286466,0.00023076,4]
[389869851,1759879843906,-500.0,0.00023085,2]
[389869853,1759879843915,-500.0,0.00023156,2]
[389869855,1759879843925,-464.0892876,0.000232,2]
[389869857,1759879843934,-624.08286466,0.00023214,6]
[389869859,1759879843943,-624.08286466,0.00023214,6]
[389869861,1759879843952,-500.0,0.00023287,2]
[389869863,1759879843961,-560.0,0.00023292,2]
[389869865,1759879843971,-212.91901006,0.00023322,10]
[389869867,1759879843980,-212.91901006,0.00023322,10]
[389869869,1759879843990,-587.9154515,0.00023342,2]
[389869871,1759879844000,-587.9154515,0.00023342,2]
[389869873,1759879844009,-243.2289341,0.00023342,2]
[389869875,1759879844018,-595.029133,0.00023342,2]
[389869877,1759879844027,-162.7393299,0.00023342,2]
[389869879,1759879844036,-624.08286466,0.00023352,8]
[389869881,1759879844046,-624.08286466,0.00023352,8]
[389869882,1759879844055,-624.08286466,0.00023352,8]
[389869883,1759879844064,-624.08286466,0.0002349,10]
[389869884,1759879844074,-624.08286466,0.0002349,10]
[389869885,1759879844083,-624.08286466,0.0002349,10]
[389869887,1759879844092,-624.08286466,0.0002349,10]
[389869889,1759879844101,-464.0892876,0.000235,2]
[389869891,1759879844111,-500.0,0.00023565,2]
[389869893,1759879844121,-212.91901006,0.00023596,14]
[389869895,1759879844130,-500.0,0.000236,2]
[389869897,1759879844139,-624.08286466,0.00023628,12]
[389869899,1759879844148,-1000.0,0.00023657,5]
[389869901,1759879844157,-464.0892876,0.000237,2]
[389869903,1759879844166,-1000.0,0.00023704,2]
[389869905,1759879844175,-624.08286466,0.00023766,14]
[389869907,1759879844184,-660.0,0.0002384,2]
[389869909,1759879844194,-212.91901006,0.0002387,18]
[389869911,1759879844203,-212.91901006,0.0002387,18]
[389869913,1759879844212,-212.91901006,0.0002387,18]
[389869915,1759879844221,-190.0,0.0002388,8]
[389869917,1759879844230,-464.0892876,0.000239,2]
[389869919,1759879844239,-1000.0,0.00023936,20]
[389869921,1759879844248,-1371.0,0.00023978,2]
[389869923,1759879844257,-411.291,0.000241,6]
[389869925,1759879844266,-1028.9503613,0.00024159,2]
[389869927,1759879844275,-1500.0,0.00024251,2]
[389869929,1759879844284,-1071.0,0.00024329,2]
[389869931,1759879844293,-1071.0,0.00024357,2]
[389869932,1759879844305,-167.83565487,0.00024374,7]
[389869934,1759879844314,-760.0,0.00024388,2]
[389869936,1759879844323,-1462.69837622,0.00024419,2]
[389869938,1759879844332,-500.0,0.00024438,10]
[389869940,1759879844342,-500.0,0.00024438,10]
[389869942,1759879844351,-469.48926576,0.00024438,10]
[389869944,1759879844360,-1371.0,0.00024538,2]
[389869946,1759879844369,-1371.0,0.00024564,2]
[389869948,1759879844378,-4198.85017318,0.000246,2]
[389869951,1759879844387,-159.0,0.0002463,13]
[389869952,1759879844396,-151.0,0.00024658,2]
[389869955,1759879844405,-151.0,0.00024658,2]
[389869957,1759879844415,-151.0,0.00024658,2]
[389869959,1759879844424,-500.0,0.00024658,2]
[389869961,1759879844433,-567.0,0.00024658,2]
[389869962,1759879844443,-289.22353685,0.00024707,2]
[389869964,1759879844452,-1071.0,0.00024709,2]
[389869967,1759879844461,-700.69976129,0.00024746,2]
[389869969,1759879844471,-2799.99624613,0.00024746,2]
[389869971,1759879844480,-355.47354377,0.00024746,2]
[389869973,1759879844489,-1421.8941751,0.00024746,2]
[389869975,1759879844499,-3199.26189397,0.00024746,2]
[389869977,1759879844508,-5681.88912368,0.00024746,2]
[389869979,1759879844517,-1071.0,0.00024755,2]
[389869981,1759879844526,-297.5145665,0.00024767,2]
[389869983,1759879844535,-500.0,0.00024799,2]
[389869985,1759879844544,-2000.0,0.000248,2]
[389869987,1759879844553,-250.0,0.000248,10]
[389869989,1759879844562,-176.96952832,0.000248,2]
[389869991,1759879844571,-5099.27101124,0.000248,2]
[389870076,1759879846641,-24318.57457523,0.000248,2]
[389870077,1759879846652,-372.9242503,0.000248,2]
[389870078,1759879846663,-1411.46974866,0.000248,2]
[389870079,1759879846712,-674.58000004,0.000248,2]
[389870080,1759879846723,-458.70479145,0.000248,2]
[389870081,1759879884232,558.89355,0.00028767,120]
[389870082,1759879901451,253.6,0.00028767,120]
[389870083,1759880105552,1183.86277382,0.00028767,120]
[389870095,1759880261014,643.265593,0.00013699,2]
[389870097,1759880457965,10000.0,0.00028767,120]
[389870098,1759880466620,10000.0,0.00028767,120]
[389870099,1759880474603,10000.0,0.00028767,120]
[389870100,1759880482072,10000.0,0.00028767,120]
[389870101,1759880489659,10000.0,0.00028767,120]
[389870102,1759880498018,10000.0,0.00028767,120]
[389870103,1759880506124,10000.0,0.00028767,120]
[389870104,1759880514138,10000.0,0.00028767,120]
[389870105,1759880522929,10000.0,0.00028767,120]
[389870106,1759880530358,10000.0,0.00028767,120]
[389870107,1759880537687,10000.0,0.00028767,120]
[389870108,1759880545850,10000.0,0.00028767,120]
[389870109,1759880553810,10000.0,0.00028767,120]
[389870110,1759880561074,10000.0,0.00028767,120]
[389870111,1759880569668,10000.0,0.00028767,120]
[389870112,1759880578574,10000.0,0.00028767,120]
[389870113,1759880586107,10000.0,0.00028767,120]
[389870114,1759880592993,10000.0,0.00028767,120]
[389870115,1759880600302,10000.0,0.00028767,120]
[389870116,1759880608197,10000.0,0.00028767,120]
[389870117,1759880616372,10000.0,0.00028767,120]
[389870118,1759880632205,7625.0,0.00028767,120]
[389870121,1759881006012,666.0,0.00017352,2]
[389870122,1759881016834,308.329,0.00028767,120]
[389870213,1759881032253,-658.920495,0.000176,2]
[389870217,1759881032265,-462.97070568,0.000176,2]
[389870220,1759881032274,-150.0,0.000176,2]
[389870223,1759881032284,-500.0,0.000176,2]
[389870224,1759881032294,-516.59118003,0.000179,2]
[389870227,1759881032304,-172.5,0.000182,2]
[389870229,1759881032314,-178.36909989,0.00018258,2]
[389870231,1759881032324,-300.0,0.00018349,2]
[389870233,1759881032333,-300.0,0.00018349,2]
[389870234,1759881032342,-300.0,0.00018349,2]
[389870236,1759881032352,-300.0,0.00018349,2]
[389870239,1759881032361,-1200.0,0.00018349,2]
[389870241,1759881032370,-78.26901439,0.0001835,2]
[389870243,1759881032382,-1121.73098561,0.0001835,2]
[389870245,1759881032392,-515.63530868,0.0001835,2]
[389870247,1759881032401,-300.0,0.00018358,2]
[389870249,1759881032410,-300.0,0.00018358,2]
[389870251,1759881032419,-300.0,0.00018358,2]
[389870253,1759881032432,-300.0,0.00018358,2]
[389870255,1759881032441,-300.0,0.00018358,2]
[389870257,1759881032450,-300.0,0.00018358,2]
[389870259,1759881032459,-300.0,0.00018358,2]
[389870261,1759881032469,-300.0,0.00018358,2]
[389870263,1759881032478,-300.0,0.00018358,2]
[389870265,1759881032489,-300.0,0.00018358,2]
[389870267,1759881032499,-300.0,0.00018358,2]
[389870268,1759881032508,-300.0,0.00018358,2]
[389870270,1759881032517,-300.0,0.00018358,2]
[389870272,1759881032527,-300.0,0.00018358,2]
[389870274,1759881032536,-300.0,0.00018358,2]
[389870276,1759881032546,-600.0,0.00018724,2]
[389870278,1759881032554,-195.0,0.000188,2]
[389870280,1759881032563,-154.5,0.000194,2]
[389870282,1759881032573,-164.0,0.00019699,3]
[389870284,1759881032585,-160.0,0.00019764,2]
[389870286,1759881032595,-402.02512307,0.00019764,2]
[389870288,1759881032603,-234.20938206,0.00019764,2]
[389870290,1759881032613,-643.265593,0.00020187,2]
[389870292,1759881032622,-720.0,0.00020597,2]
[389870294,1759881032631,-151.0,0.00020632,2]
[389870296,1759881032640,-151.0,0.00020632,2]
[389870298,1759881032649,-151.0,0.00020632,2]
[389870300,1759881032660,-151.0,0.00020632,2]
[389870302,1759881032674,-151.0,0.00020632,2]
[389870304,1759881032684,-151.0,0.00020632,2]
[389870306,1759881032694,-151.0,0.00020632,2]
[389870307,1759881032707,-151.0,0.00020632,2]
[389870309,1759881032717,-151.0,0.00020632,2]
[389870311,1759881032726,-151.0,0.00020632,2]
[389870313,1759881032736,-151.0,0.00020632,2]
[389870315,1759881032749,-151.0,0.00020632,2]
[389870317,1759881032758,-151.0,0.00020632,2]
[389870319,1759881032768,-151.0,0.00020632,2]
[389870321,1759881032777,-151.0,0.00020632,2]
[389870323,1759881032786,-151.0,0.00020632,2]
[389870325,1759881032795,-151.0,0.00020632,2]
[389870327,1759881032804,-194.45484202,0.00020632,2]
[389870329,1759881032813,-980.0,0.00021926,2]
[389870331,1759881032822,-543.25058728,0.00022306,2]
[389870333,1759881032832,-864.0,0.00022656,20]
[389870335,1759881032841,-175.86541425,0.00023,2]
[389870337,1759881032851,-500.0,0.00023,2]
[389870339,1759881032861,-175.86541425,0.000232,2]
[389870341,1759881032870,-500.0,0.00023287,2]
[389870343,1759881032879,-175.86541425,0.000235,2]
[389870345,1759881032889,-10475.74498108,0.000235,2]
[389870347,1759881032899,-160.0,0.00023544,2]
[389870349,1759881032908,-976.43201705,0.00023658,5]
[389870351,1759881032918,-175.86541425,0.000237,2]
[389870353,1759881032930,-175.86541425,0.000239,2]
[389870355,1759881032939,-260.0,0.00024092,2]
[389870357,1759881032949,-329.032,0.00024152,6]
[389870358,1759881032958,-771.71277097,0.00024159,2]
[389870359,1759881032968,-167.83565487,0.00024374,7]
[389870360,1759881032977,-153.324101,0.000245,22]
[389870361,1759881032986,-360.0,0.0002464,2]
[389870362,1759881032996,-151.0,0.00024658,2]
[389870363,1759881033005,-500.0,0.00024658,2]
[389870364,1759881033014,-151.0,0.00024658,2]
[389870365,1759881033023,-543.0,0.00024658,2]
[389870366,1759881033033,-6701.2,0.00024679,2]
[389870367,1759881033042,-36375.66630666,0.0002469,2]
[389870368,1759881033051,-652.91806124,0.000247,2]
[389870369,1759881033060,-652.91806121,0.00024725,2]
[389870370,1759881033069,-652.91806121,0.0002475,2]
[389870371,1759881033079,-190.0,0.0002476,10]
[389870372,1759881033088,-652.91806121,0.00024775,2]
[389870373,1759881033097,-799.78,0.0002479,2]
[389870374,1759881033106,-2000.0,0.000248,2]
[389870375,1759881033116,-166.0,0.000248,3]
[389870376,1759881033125,-172.0,0.000248,3]
[389870377,1759881033135,-157.0,0.000248,3]
[389870378,1759881033144,-157.0,0.000248,3]
[389870379,1759881033153,-157.0,0.000248,3]
[389870380,1759881033162,-157.0,0.000248,3]
[389870381,1759881033173,-157.0,0.000248,3]
[389870382,1759881033183,-157.0,0.000248,3]
[389870383,1759881033192,-159.67362917,0.000248,3]
[389870384,1759881033201,-329.0,0.000248,3]
[389870385,1759881033210,-329.0,0.000248,3]
[389870386,1759881033219,-329.0,0.000248,3]
[389870387,1759881033228,-329.0,0.000248,3]
[389870388,1759881033237,-329.0,0.000248,3]
[389870389,1759881033245,-166.0,0.000248,3]
[389870390,1759881033254,-166.0,0.000248,3]
[389870391,1759881033263,-166.0,0.000248,3]
[389870392,1759881033272,-172.0,0.000248,3]
[389870393,1759881033282,-250.0,0.000248,10]
[389870394,1759881033291,-652.91806121,0.000248,2]
[389870395,1759881033301,-15995.13118,0.000248,2]
[389870396,1759881033311,-176.96952832,0.00024807,2]
[389870397,1759881033320,-1071.0,0.00024868,2]
[389870398,1759881033329,-537.27311866,0.00024872,2]
[389870399,1759881033338,-500.0,0.00024873,2]
[389870400,1759881033347,-7997.56559,0.00024889,2]
[389870401,1759881033356,-31094.2191811,0.0002489,2]
[389870407,1759881037777,-500.0,0.00024679,2]
[389870409,1759881037786,-500.0,0.00024679,2]
[389870410,1759881037795,-540.93382077,0.00024679,2]
[389870411,1759881037805,-500.0,0.00024679,2]
[389870412,1759881037814,-500.0,0.00024679,2]
[389870413,1759881037823,-500.0,0.00024679,2]
[389870414,1759881037832,-500.0,0.00024679,2]
[389870415,1759881037841,-272.02604305,0.00024679,2]
[389870416,1759881037850,-452.98012144,0.00024679,2]
[389870417,1759881037859,-300.24749436,0.00024872,2]
[389870418,1759881037868,-27973.83655979,0.0002489,2]
[389870419,1759881037879,-36902.73133911,0.0002489,2]
[389870420,1759881037889,-42210.55339382,0.00024899,7]
[389870421,1759881037898,-500.0,0.000249,9]
[389870422,1759881037907,-500.0,0.000249,9]
[389870423,1759881037916,-250.0,0.000249,10]
[389870424,1759881037927,-6405.43220089,0.000249,2]
[389870425,1759881037937,-3478.937948,0.000249,2]
[389870426,1759881037949,-6306.84715572,0.000249,2]
[389870427,1759881037960,-1962.98581971,0.000249,2]
[389870807,1759881043262,-150.0,0.00021926,2]
[389870809,1759881043272,-160.0,0.00023,2]
[389870811,1759881043281,-48162.73400184,0.000249,2]
[389870813,1759881043293,-111028.28154066,0.000249,2]
[389871013,1759881631946,200.0,0.00024944,120]
[389871014,1759881811294,200.0,0.00027589,120]
[389871015,1759881826915,1009.0,0.00028767,120]
[389871016,1759881868789,226.7,0.00028767,120]
[389871017,1759882051307,200.0,0.00028023,120]
[389871018,1759882112447,200.0,0.00027954,120]
[389871019,1759882171345,200.0,0.00027975,120]
[389871028,1759882231812,200.0,0.00027539,120]
[389871250,1759882235926,200.0,0.00027,120]
[389871251,1759882236232,200.0,0.000279,120]
[389871307,1759882238532,-300.0,0.00017999,2]
[389871309,1759882238542,-2019.2335285,0.00018,2]
[389871311,1759882238554,-2980.7664715,0.00018,2]
[389871313,1759882238563,-150.0,0.00018,2]
[389871315,1759882238572,-160.0,0.00018,2]
[389871317,1759882238582,-650.22833108,0.00018358,2]
[389871319,1759882238592,-7152.20949998,0.00018359,2]
[389871322,1759882238609,-42847.79050002,0.00018359,2]
[389871324,1759882238619,-300.0,0.00018359,2]
[389871326,1759882238629,-300.0,0.00018359,2]
[389871328,1759882238638,-300.0,0.00018359,2]
[389871330,1759882238648,-300.0,0.00018359,2]
[389871332,1759882238661,-300.0,0.00018359,2]
[389871334,1759882238671,-300.0,0.00018359,2]
[389871336,1759882238681,-300.0,0.00018359,2]
[389871338,1759882238691,-300.0,0.00018359,2]
[389871340,1759882238702,-300.0,0.00018359,2]
[389871342,1759882238714,-300.0,0.00018359,2]
[389871344,1759882238724,-300.0,0.00018359,2]
[389871346,1759882238735,-300.0,0.00018359,2]
[389871348,1759882238745,-300.0,0.00018359,2]
[389871350,1759882238755,-300.0,0.00018359,2]
[389871352,1759882238764,-300.0,0.00018359,2]
[389871354,1759882238778,-260.0,0.00018548,2]
[389871356,1759882238789,-172.5,0.000186,2]
[389871358,1759882238799,-360.0,0.00019096,2]
[389871360,1759882238810,-195.0,0.000192,2]
[389871362,1759882238820,-420.0,0.00019639,2]
[389871364,1759882238832,-460.0,0.00019644,2]
[389871366,1759882238842,-177.90835513,0.000198,2]
[389871368,1759882238851,-217.5,0.000198,2]
[389871370,1759882238861,-234.20938206,0.00019814,2]
[389871372,1759882238870,-402.02512307,0.00019814,2]
[389871374,1759882238880,-177.90835513,0.0002,2]
[389871376,1759882238891,-560.0,0.00020192,2]
[389871377,1759882238900,-177.90835513,0.000202,2]
[389871379,1759882238911,-240.0,0.000204,2]
[389871381,1759882238922,-660.0,0.0002074,2]
[389871383,1759882238933,-760.0,0.00021288,2]
[389871385,1759882238943,-578.4470737,0.00021817,2]
[389871387,1759882238953,-1680.37356172,0.00021817,2]
[389871389,1759882238963,-176.96952832,0.00021817,2]
[389871390,1759882238973,-860.0,0.00021836,2]
[389871393,1759882238985,-151.0,0.000219,4]
[389871394,1759882238999,-429.9,0.00021907,3]
[389871395,1759882239011,-214.95,0.00021907,3]
[389871396,1759882239021,-644.85,0.00021907,3]
[389871397,1759882239031,-210.17324605,0.00021916,2]
[389871398,1759882239041,-376.09118306,0.00021916,2]
[389871399,1759882239051,-156.646,0.00021916,2]
[389871400,1759882239061,-366.049,0.00021916,2]
[389871401,1759882239071,-200.0,0.00021916,2]
[389871402,1759882239082,-866.9,0.00021917,2]
[389871403,1759882239094,-866.9,0.00021917,2]
[389871404,1759882239104,-866.9,0.00021917,2]
[389871405,1759882239114,-539.24,0.00021917,2]
[389871406,1759882239124,-866.9,0.00021917,2]
[389871407,1759882239134,-539.24,0.00021917,2]
[389871408,1759882239144,-866.9,0.00021917,2]
[389871409,1759882239153,-539.24,0.00021917,2]
[389871410,1759882239163,-500.0,0.00021917,2]
[389871411,1759882239173,-866.9,0.00021917,2]
[389871412,1759882239183,-539.24,0.00021917,2]
[389871413,1759882239193,-866.9,0.00021917,2]
[389871414,1759882239203,-500.0,0.00021917,2]
[389871415,1759882239214,-539.24,0.00021917,2]
[389871416,1759882239223,-866.9,0.00021917,2]
[389871417,1759882239233,-539.24,0.00021917,2]
[389871418,1759882239243,-480.0,0.00021917,2]
[389871419,1759882239253,-866.9,0.00021917,2]
[389871420,1759882239263,-539.24,0.00021917,2]
[389871421,1759882239273,-866.9,0.00021917,2]
[389871422,1759882239283,-539.24,0.00021917,2]
[389871423,1759882239292,-866.9,0.00021917,2]
[389871424,1759882239302,-539.24,0.00021917,2]
[389871425,1759882239312,-866.9,0.00021917,2]
[389871426,1759882239321,-539.24,0.00021917,2]
[389871427,1759882239330,-866.9,0.00021917,2]
[389871428,1759882239340,-539.24,0.00021917,2]
[389871429,1759882239350,-866.9,0.00021917,2]
[389871430,1759882239360,-539.24,0.00021917,2]
[389871431,1759882239369,-866.9,0.00021917,2]
[389871432,1759882239379,-539.24,0.00021917,2]
[389871433,1759882239388,-866.9,0.00021917,2]
[389871434,1759882239398,-539.24,0.00021917,2]
[389871435,1759882239407,-866.9,0.00021917,2]
[389871436,1759882239417,-539.24,0.00021917,2]
[389871437,1759882239426,-866.9,0.00021917,2]
[389871438,1759882239435,-539.24,0.00021917,2]
[389871439,1759882239444,-866.9,0.00021917,2]
[389871440,1759882239453,-539.24,0.00021917,2]
[389871441,1759882239464,-866.9,0.00021917,2]
[389871442,1759882239473,-539.24,0.00021917,2]
[389871443,1759882239483,-866.9,0.00021917,2]
[389871444,1759882239492,-539.24,0.00021917,2]
[389871445,1759882239502,-866.9,0.00021917,2]
[389871446,1759882239511,-539.24,0.00021917,2]
[389871447,1759882239520,-539.24,0.00021917,2]
[389871448,1759882239530,-866.9,0.00021917,2]
[389871449,1759882239540,-539.24,0.00021917,2]
[389871450,1759882239549,-866.9133453,0.00021917,2]
[389871451,1759882239559,-539.24,0.00021917,2]
[389871452,1759882239568,-539.32350873,0.00021917,2]
[389871453,1759882239578,-500.0,0.00021917,2]
[389871454,1759882239587,-500.0,0.00021917,2]
[389871455,1759882239596,-500.0,0.00021917,2]
[389871456,1759882239606,-500.0,0.00021917,2]
[389871457,1759882239615,-500.0,0.00021917,2]
[389871458,1759882239624,-500.0,0.00021917,2]
[389871459,1759882239633,-500.0,0.00021917,2]
[389871460,1759882239643,-500.0,0.00021917,2]
[389871461,1759882239652,-500.0,0.00021917,2]
[389871462,1759882239665,-500.0,0.00021917,2]
[389871463,1759882239674,-500.0,0.00021917,2]
[389871464,1759882239683,-500.0,0.00021917,2]
[389871465,1759882239692,-500.0,0.00021917,2]
[389871466,1759882239702,-500.0,0.00021917,2]
[389871467,1759882239714,-500.0,0.00021917,2]
[389871468,1759882239724,-500.0,0.00021917,2]
[389871469,1759882239735,-500.0,0.00021917,2]
[389871470,1759882239744,-301.69855151,0.00021917,2]
[389871471,1759882239754,-500.0,0.00021917,2]
[389871472,1759882239763,-500.0,0.00021917,2]
[389871473,1759882239773,-500.0,0.00021917,2]
[389871474,1759882239783,-500.0,0.00021917,2]
[389871475,1759882239793,-500.0,0.00021917,2]
[389871476,1759882239803,-500.0,0.00021917,2]
[389871477,1759882239812,-500.0,0.00021917,2]
[389871478,1759882239822,-282.33010824,0.00021917,2]
[389871479,1759882239832,-500.0,0.00021917,2]
[389871480,1759882239842,-500.0,0.00021917,2]
[389871481,1759882239852,-500.0,0.00021917,2]
[389871482,1759882239861,-500.0,0.00021917,2]
[389871483,1759882239871,-500.0,0.00021917,2]
[389871484,1759882239880,-500.0,0.00021917,2]
[389871485,1759882239890,-334.96773766,0.00021917,2]
[389871486,1759882239899,-500.0,0.00021917,2]
[389871487,1759882239909,-500.0,0.00021917,2]
[389871488,1759882239919,-500.0,0.00021917,2]
[389871489,1759882239928,-500.0,0.00021917,2]
[389871490,1759882239938,-500.0,0.00021917,2]
[389871491,1759882239948,-500.0,0.00021917,2]
[389871492,1759882239958,-500.0,0.00021917,2]
[389871493,1759882239968,-500.0,0.00021917,2]
[389871494,1759882239977,-627.87354286,0.00021917,2]
[389871495,1759882239986,-813.46,0.00021917,2]
[389871496,1759882239995,-813.46,0.00021917,2]
[389871497,1759882240005,-813.46,0.00021917,2]
[389871498,1759882240014,-813.46,0.00021917,2]
[389871500,1759882240025,-813.46,0.00021917,2]
[389871501,1759882240034,-813.46,0.00021917,2]
[389871503,1759882240044,-480.7299975,0.00021917,2]
[389871505,1759882240054,-813.46,0.00021917,2]
[389871507,1759882240064,-813.46,0.00021917,2]
[389871509,1759882240074,-813.46,0.00021917,2]
[389871511,1759882240083,-813.46,0.00021917,2]
[389871513,1759882240093,-813.46,0.00021917,2]
[389871515,1759882240102,-813.46,0.00021917,2]
[389871516,1759882240111,-813.46,0.00021917,2]
[389871518,1759882240121,-813.46,0.00021917,2]
[389871520,1759882240130,-519.70248933,0.00021917,2]
[389871522,1759882240140,-813.46,0.00021917,2]
[389871524,1759882240149,-813.46,0.00021917,2]
[389871526,1759882240159,-813.46,0.00021917,2]
[389871528,1759882240168,-813.46,0.00021917,2]
[389871530,1759882240178,-813.46,0.00021917,2]
[389871532,1759882240187,-813.46,0.00021917,2]
[389871534,1759882240197,-813.46,0.00021917,2]
[389871536,1759882240211,-813.46,0.00021917,2]
[389871538,1759882240223,-813.46,0.00021917,2]
[389871540,1759882240235,-813.64937445,0.00021917,2]
[389871542,1759882240246,-500.0,0.00021917,2]
[389871544,1759882240256,-500.0,0.00021917,2]
[389871546,1759882240266,-500.0,0.00021917,2]
[389871548,1759882240275,-500.0,0.00021917,2]
[389871550,1759882240285,-500.0,0.00021917,2]
[389871552,1759882240295,-500.0,0.00021917,2]
[389871553,1759882240304,-500.0,0.00021917,2]
[389871555,1759882240314,-500.0,0.00021917,2]
[389871557,1759882240324,-500.0,0.00021917,2]
[389871559,1759882240333,-500.0,0.00021917,2]
[389871561,1759882240342,-500.0,0.00021917,2]
[389871563,1759882240351,-500.0,0.00021917,2]
[389871565,1759882240360,-500.0,0.00021917,2]
[389871567,1759882240370,-500.0,0.00021917,2]
[389871569,1759882240379,-215.48801808,0.00021917,2]
[389871571,1759882240388,-500.0,0.00021917,2]
[389871573,1759882240397,-500.0,0.00021917,2]
[389871575,1759882240407,-500.0,0.00021917,2]
[389871577,1759882240417,-514.45428372,0.00021917,2]
[389871579,1759882240426,-500.0,0.00021917,2]
[389871581,1759882240435,-500.0,0.00021917,2]
[389871583,1759882240444,-500.0,0.00021917,2]
[389871585,1759882240453,-500.0,0.00021917,2]
[389871587,1759882240464,-500.0,0.00021917,2]
[389871589,1759882240473,-500.0,0.00021917,2]
[389871591,1759882240483,-500.0,0.00021917,2]
[389871593,1759882240492,-500.0,0.00021917,2]
[389871595,1759882240501,-500.0,0.00021917,2]
[389871597,1759882240510,-500.0,0.00021917,2]
[389871599,1759882240519,-500.0,0.00021917,2]
[389871601,1759882240528,-500.0,0.00021917,2]
[389871603,1759882240537,-500.0,0.00021917,2]
[389871605,1759882240546,-2091.7,0.00021917,2]
[389871607,1759882240556,-477.51450783,0.00021917,2]
[389871609,1759882240565,-2091.7,0.00021917,2]
[389871610,1759882240574,-2091.7,0.00021917,2]
[389871612,1759882240583,-2091.7,0.00021917,2]
[389871615,1759882240593,-678.42,0.00021917,2]
[389871616,1759882240602,-2091.7,0.00021917,2]
[389871618,1759882240611,-2091.7,0.00021917,2]
[389871620,1759882240621,-678.42,0.00021917,2]
[389871622,1759882240636,-2091.7,0.00021917,2]
[389871624,1759882240646,-678.42,0.00021917,2]
[389871626,1759882240656,-2091.7,0.00021917,2]
[389871628,1759882240671,-678.42,0.00021917,2]
[389871630,1759882240680,-2091.7,0.00021917,2]
[389871632,1759882240691,-678.42,0.00021917,2]
[389871634,1759882240701,-2091.7,0.00021917,2]
[389871636,1759882240712,-678.42,0.00021917,2]
[389871638,1759882240721,-2091.7,0.00021917,2]
[389871640,1759882240730,-678.42,0.00021917,2]
[389871642,1759882240741,-2091.7,0.00021917,2]